fUST/lending_fUST_20250723
["ID","MTS","AMOUNT","RATE_DAILY","PERIOD"]
[374107734,1753209046835,-1758.43,0.00020114,2]
[374107735,1753209046844,-881.45,0.00020114,2]
[374107736,1753209046853,-460.0,0.00020114,2]
[374107737,1753209046864,-460.0,0.00020114,2]
[374107738,1753209046874,-543.92,0.00020114,2]
[374107739,1753209046884,-615.68,0.00020114,2]
[374107740,1753209046893,-460.0,0.00020114,2]
[374107741,1753209046902,-672.36,0.00020116,2]
[374107742,1753209046913,-460.0,0.00020116,2]
[374107743,1753209046922,-474.37,0.00020116,2]
[374107744,1753209046931,-666.71,0.00020116,2]
[374107745,1753209046941,-594.02,0.00020116,2]
[374107746,1753209046950,-502.956118,0.00020187,2]
[374107747,1753209046959,-1144.11238196,0.00020383,3]
[374107748,1753209046969,-750.0,0.00020387,2]
[374107749,1753209046978,-699.21,0.00020387,2]
[374107750,1753209046987,-777.53,0.00020387,2]
[374107751,1753209046996,-745.24,0.00020387,2]
[374107752,1753209047006,-777.63,0.00020387,2]
[374107753,1753209047016,-1758.43,0.00020388,2]
[374107754,1753209047026,-881.45,0.00020388,2]
[374107755,1753209047035,-460.0,0.00020388,2]
[374107756,1753209047045,-460.0,0.00020388,2]
[374107757,1753209047053,-543.92,0.00020388,2]
[374107758,1753209047063,-615.68,0.00020388,2]
[374107759,1753209047073,-460.0,0.00020388,2]
[374107760,1753209047082,-672.36,0.0002039,2]
[374107761,1753209047091,-288.79651489,0.0002039,2]
[374107762,1753209047100,-474.37,0.0002039,2]
[374107763,1753209047110,-666.71,0.0002039,2]
[374107764,1753209047119,-594.02,0.0002039,2]
[374107765,1753209047129,-460.0,0.00020444,2]
[374107766,1753209047138,-1000.0,0.00020521,2]
[374107767,1753209047148,-500.54494054,0.0002055,2]
[374107768,1753209047157,-165.42282706,0.0002055,2]
[374107769,1753209047167,-500.0,0.0002055,2]
[374107770,1753209047176,-160.25012645,0.0002055,2]
[374107771,1753209047186,-1500.0,0.00020568,2]
[374107772,1753209047195,-496.602,0.0002061,2]
[374107773,1753209047205,-1144.11238196,0.00020659,3]
[374107774,1753209047215,-750.0,0.00020661,2]
[374107775,1753209047224,-699.21,0.00020661,2]
[374107776,1753209047234,-777.53,0.00020661,2]
[374107777,1753209047243,-745.24,0.00020661,2]
[374107778,1753209047253,-777.63,0.00020661,2]
[374107779,1753209047262,-1758.43,0.00020662,2]
[374107780,1753209047273,-881.45,0.00020662,2]
[374107781,1753209047283,-460.0,0.00020662,2]
[374107782,1753209047293,-460.0,0.00020662,2]
[374107783,1753209047303,-543.92,0.00020662,2]
[374107784,1753209047313,-615.68,0.00020662,2]
[374107785,1753209047322,-460.0,0.00020662,2]
[374107786,1753209047332,-672.36,0.00020664,2]
[374107787,1753209047342,-474.37,0.00020664,2]
[374107788,1753209047351,-666.71,0.00020664,2]
[374107789,1753209047361,-594.02,0.00020664,2]
[374107790,1753209047371,-1144.11238196,0.00020934,4]
[374107791,1753209047380,-750.0,0.00020935,2]
[374107792,1753209047390,-699.21,0.00020935,2]
[374107793,1753209047399,-777.53,0.00020935,2]
[374107794,1753209047409,-745.24,0.00020935,2]
[374107795,1753209047418,-777.63,0.00020935,2]
[374107796,1753209047428,-1758.43,0.00020936,2]
[374107797,1753209047437,-881.45,0.00020936,2]
[374107798,1753209047447,-460.0,0.00020936,2]
[374107799,1753209047459,-460.0,0.00020936,2]
[374107800,1753209047469,-543.92,0.00020936,2]
[374107801,1753209047478,-615.68,0.00020936,2]
[374107802,1753209047487,-460.0,0.00020936,2]
[374107803,1753209047497,-672.36,0.00020938,2]
[374107804,1753209047507,-474.37,0.00020938,2]
[374107805,1753209047517,-666.71,0.00020938,2]
[374107806,1753209047527,-594.02,0.00020938,2]
[374107807,1753209047537,-560.0,0.00020992,2]
[374107808,1753209047546,-500.0,0.00021068,2]
[374107809,1753209047555,-2000.0,0.00021116,2]
[374107810,1753209047565,-625.18,0.00021123,3]
[374107811,1753209047576,-312.58,0.00021123,3]
[374107812,1753209047587,-1500.42,0.00021124,3]
[374107813,1753209047597,-750.0,0.00021209,2]
[374107814,1753209047629,-699.21,0.00021209,2]
[374107815,1753209047638,-777.53,0.00021209,2]
[374107816,1753209047649,-745.24,0.00021209,2]
[374107817,1753209047659,-777.63,0.00021209,2]
[374107818,1753209047669,-1758.43,0.0002121,2]
[374107819,1753209047678,-881.45,0.0002121,2]
[374107820,1753209047687,-460.0,0.0002121,2]
[374107821,1753209047697,-467.69,0.0002121,2]
[374107822,1753209047706,-543.92,0.0002121,2]
[374107823,1753209047715,-615.68,0.0002121,2]
[374107824,1753209047724,-460.0,0.0002121,2]
[374107825,1753209047734,-1144.11238196,0.0002121,4]
[374107826,1753209047743,-672.36,0.00021212,2]
[374107827,1753209047753,-474.37,0.00021212,2]
[374107828,1753209047763,-666.71,0.00021212,2]
[374107829,1753209047772,-594.02,0.00021212,2]
[374107830,1753209047782,-939.815287,0.00021214,2]
[374107831,1753209047791,-359.94603059,0.00021363,2]
[374107832,1753209047801,-1349.78201385,0.00021429,2]
[374107833,1753209047811,-750.0,0.00021483,2]
[374107834,1753209047821,-699.21,0.00021483,2]
[374107835,1753209047830,-777.53,0.00021483,2]
[374107836,1753209047840,-745.24,0.00021483,2]
[374107837,1753209047850,-777.63,0.00021483,2]
[374107838,1753209047858,-1758.43,0.00021484,2]
[374107839,1753209047868,-881.45,0.00021484,2]
[374107840,1753209047877,-532.58,0.00021484,2]
[374107841,1753209047887,-543.92,0.00021484,2]
[374107842,1753209047896,-615.68,0.00021484,2]
[374107843,1753209047905,-460.0,0.00021484,2]
[374107844,1753209047914,-672.36,0.00021486,2]
[374107845,1753209047923,-474.37,0.00021486,2]
[374107846,1753209047932,-666.71,0.00021486,2]
[374107847,1753209047942,-594.02,0.00021486,2]
[374107848,1753209047951,-1144.11238196,0.00021486,5]
[374107849,1753209047961,-2214.94518694,0.000215,2]
[374107850,1753209047970,-500.0,0.00021538,2]
[374107851,1753209047978,-500.0,0.00021538,2]
[374107852,1753209047987,-500.0,0.00021538,2]
[374107853,1753209047996,-500.0,0.00021538,2]
[374107854,1753209048006,-660.0,0.0002154,2]
[374107855,1753209048017,-648.0,0.00021554,2]
[374107856,1753209048026,-407.0,0.00021554,2]
[374107857,1753209048035,-2157.0,0.00021554,2]
[374107858,1753209048045,-750.0,0.00021757,2]
[374107859,1753209048054,-699.21,0.00021757,2]
[374107860,1753209048064,-777.53,0.00021757,2]
[374107861,1753209048073,-745.24,0.00021757,2]
[374107862,1753209048082,-777.63,0.00021757,2]
[374107863,1753209048091,-1758.43,0.00021758,2]
[374107864,1753209048101,-881.45,0.00021758,2]
[374107865,1753209048111,-543.92,0.00021758,2]
[374107866,1753209048120,-615.68,0.00021758,2]
[374107867,1753209048130,-460.0,0.00021758,2]
[374107868,1753209048140,-672.36,0.0002176,2]
[374107869,1753209048150,-474.37,0.0002176,2]
[374107870,1753209048160,-666.71,0.0002176,2]
[374107871,1753209048170,-594.02,0.0002176,2]
[374107872,1753209048181,-1144.11238196,0.00021762,5]
[374107873,1753209048191,-240.0,0.00021933,2]
[374107874,1753209048202,-19411.56,0.00022,2]
[374107875,1753209048212,-750.0,0.00022031,2]
[374107876,1753209048222,-699.21,0.00022031,2]
[374107877,1753209048232,-777.53,0.00022031,2]
[374107878,1753209048242,-745.24,0.00022031,2]
[374107879,1753209048252,-777.63,0.00022031,2]
[374107880,1753209048263,-1758.43,0.00022032,2]
[374107881,1753209048273,-881.45,0.00022032,2]
[374107882,1753209048283,-543.92,0.00022032,2]
[374107883,1753209048293,-615.68,0.00022032,2]
[374107884,1753209048302,-460.0,0.00022032,2]
[374107885,1753209048312,-672.36,0.00022034,2]
[374107886,1753209048321,-474.37,0.00022034,2]
[374107887,1753209048330,-666.71,0.00022034,2]
[374107888,1753209048341,-594.02,0.00022034,2]
[374107889,1753209048351,-1144.11238196,0.00022038,6]
[374107890,1753209048362,-1000.0,0.00022086,2]
[374107891,1753209048372,-1000.0,0.00022086,2]
[374107892,1753209048381,-760.0,0.00022088,2]
[374107893,1753209048390,-218.95,0.000221,7]
[374107894,1753209048400,-367.06,0.000221,7]
[374107895,1753209048410,-2429.67,0.000221,7]
[374107896,1753209048425,-1541.83927499,0.00022113,2]
[374107897,1753209048435,-939.815287,0.00022241,7]
[374107898,1753209048445,-750.0,0.00022305,2]
[374107899,1753209048455,-699.21,0.00022305,2]
[374107900,1753209048465,-777.53,0.00022305,2]
[374107901,1753209048474,-745.24,0.00022305,2]
[374107902,1753209048485,-777.63,0.00022305,2]
[374107903,1753209048494,-1758.43,0.00022306,2]
[374107904,1753209048505,-881.45,0.00022306,2]
[374107905,1753209048517,-543.92,0.00022306,2]
[374107906,1753209048527,-615.68,0.00022306,2]
[374107907,1753209048537,-460.0,0.00022306,2]
[374107908,1753209048547,-672.36,0.00022308,2]
[374107909,1753209048556,-474.37,0.00022308,2]
[374107910,1753209048567,-666.71,0.00022308,2]
[374107911,1753209048579,-594.02,0.00022308,2]
[374107912,1753209048589,-1144.11238196,0.00022314,7]
[374107913,1753209048600,-182.27,0.00022448,2]
[374107914,1753209048610,-1713.66,0.00022465,2]
[374107915,1753209048620,-750.0,0.00022579,2]
[374107916,1753209048629,-699.21,0.00022579,2]
[374107917,1753209048640,-777.53,0.00022579,2]
[374107918,1753209048651,-745.24,0.00022579,2]
[374107919,1753209048661,-777.63,0.00022579,2]
[374107920,1753209048671,-1758.43,0.0002258,2]
[374107921,1753209048681,-881.45,0.0002258,2]
[374107922,1753209048690,-543.92,0.0002258,2]
[374107923,1753209048701,-615.68,0.0002258,2]
[374107924,1753209048711,-460.0,0.0002258,2]
[374107925,1753209048721,-672.36,0.00022582,2]
[374107926,1753209048731,-474.37,0.00022582,2]
[374107927,1753209048740,-666.71,0.00022582,2]
[374107928,1753209048750,-594.02,0.00022582,2]
[374107929,1753209048760,-1144.11238196,0.0002259,7]
[374107930,1753209048769,-500.0,0.00022634,2]
[374107931,1753209048779,-1501.81370368,0.00022634,2]
[374107932,1753209048789,-580.0,0.00022636,2]
[374107933,1753209048800,-1047.71744529,0.0002278,2]
[374107934,1753209048809,-750.0,0.00022853,2]
[374107935,1753209048819,-699.21,0.00022853,2]
[374107936,1753209048829,-777.53,0.00022853,2]
[374107937,1753209048839,-745.24,0.00022853,2]
[374107938,1753209048849,-777.63,0.00022853,2]
[374107939,1753209048859,-1758.43,0.00022854,2]
[374107940,1753209048869,-881.45,0.00022854,2]
[374107941,1753209048878,-543.92,0.00022854,2]
[374107942,1753209048889,-615.68,0.00022854,2]
[374107943,1753209048899,-460.0,0.00022854,2]
[374107944,1753209048909,-672.36,0.00022856,2]
[374107945,1753209048919,-474.37,0.00022856,2]
[374107946,1753209048929,-666.71,0.00022856,2]
[374107947,1753209048939,-594.02,0.00022856,2]
[374107948,1753209048948,-1144.11238196,0.00022866,8]
[374107949,1753209048958,-136780.15680692,0.00022929,2]
[374107950,1753209048967,-500.0,0.00022973,2]
[374107951,1753209048977,-9810.06450645,0.00023,2]
[374107952,1753209048987,-28383.84669877,0.00023,2]
[374107953,1753209048996,-160.0,0.00023,2]
[374107954,1753209049006,-750.0,0.00023127,2]
[374107955,1753209049017,-699.41,0.00023127,2]
[374107956,1753209049027,-777.58,0.00023127,2]
[374107957,1753209049038,-745.44,0.00023127,2]
[374107958,1753209049048,-777.79,0.00023127,2]
[374107959,1753209049058,-1758.43,0.00023128,2]
[374107960,1753209049068,-881.45,0.00023128,2]
[374107961,1753209049078,-543.92,0.00023128,2]
[374107962,1753209049089,-615.68,0.00023128,2]
[374107963,1753209049098,-460.0,0.00023128,2]
[374107964,1753209049108,-672.4,0.0002313,2]
[374107965,1753209049118,-474.6,0.0002313,2]
[374107966,1753209049128,-666.87,0.0002313,2]
[374107967,1753209049139,-594.22,0.0002313,2]
[374107968,1753209049149,-1144.11238196,0.00023141,8]
[374107969,1753209049159,-1349.78201385,0.00023231,2]
[374107970,1753209049170,-250.0,0.00023283,2]
[374107971,1753209049180,-460.0,0.00023295,2]
[374107972,1753209049190,-460.0,0.00023295,2]
[374107973,1753209049200,-460.0,0.00023295,2]
[374107974,1753209049210,-1600.0,0.00023391,2]
[374107975,1753209049220,-939.815287,0.000234,7]
[374107976,1753209049230,-1758.43,0.00023402,2]
[374107977,1753209049243,-881.45,0.00023402,2]
[374107978,1753209049253,-543.92,0.00023402,2]
[374107979,1753209049263,-615.68,0.00023402,2]
[374107980,1753209049274,-460.0,0.00023402,2]
[374107981,1753209049284,-1144.11238196,0.00023417,9]
[374107982,1753209049295,-167.37474869,0.00023467,2]
[374107983,1753209049306,-1600.0,0.00023472,2]
[374107984,1753209049317,-800.35007006,0.00023521,2]
[374107985,1753209049327,-1000.0,0.00023544,2]
[374107986,1753209049338,-194.5671562,0.00023556,2]
[374107987,1753209049348,-153.0,0.00023559,2]
[374107988,1753209049358,-153.0,0.00023559,2]
[374107989,1753209049368,-460.0,0.00023569,2]
[374107990,1753209049378,-500.0,0.00023616,2]
[374107991,1753209049388,-1758.54103261,0.00023676,2]
[374107992,1753209049398,-881.57879178,0.00023676,2]
[374107993,1753209049408,-543.92,0.00023676,2]
[374107994,1753209049418,-615.68,0.00023676,2]
[374107995,1753209049428,-290.01,0.00023676,2]
[374107996,1753209049439,-1144.11238196,0.00023693,9]
[374107997,1753209049449,-218.95,0.000237,7]
[374107998,1753209049458,-1600.0,0.0002371,2]
[374107999,1753209049468,-237.336,0.00023723,2]
[374108000,1753209049478,-166.1352,0.00023723,2]
[374108001,1753209049487,-289.34632573,0.00023749,2]
[374108002,1753209049497,-2429.67,0.000238,7]
[374108003,1753209049507,-19411.56,0.000238,2]
[374108004,1753209049517,-214.6393183,0.000238,7]
[374108005,1753209049527,-500.0,0.00023827,2]
[374108006,1753209049537,-460.0,0.00023843,2]
[374108007,1753209049546,-719.77086901,0.00023867,2]
[374108008,1753209049556,-1000.0,0.00023905,2]
[374108009,1753209049566,-1600.0,0.00023918,2]
[374108010,1753209049577,-544.07,0.0002395,2]
[374108011,1753209049587,-1000.0,0.00023967,2]
[374108012,1753209049596,-1144.11238196,0.00023969,10]
[374108013,1753209049606,-1000.0,0.00023979,2]
[374108014,1753209049616,-99386.29361592,0.00024,2]
[374108015,1753209049626,-155.80101223,0.00024,14]
[374108016,1753209049636,-1600.0,0.00024003,2]
[374108017,1753209049646,-500.0,0.00024004,2]
[374108018,1753209049656,-500.0,0.00024042,2]
[374108019,1753209049666,-1600.0,0.00024058,2]
[374108020,1753209049675,-460.0,0.00024117,2]
[374108021,1753209049685,-1000.0,0.00024177,2]
[374108022,1753209049694,-500.0,0.00024184,2]
[374108023,1753209049704,-1600.0,0.00024188,2]
[374108024,1753209049714,-367.06,0.000242,7]
[374108025,1753209049723,-1144.11238196,0.00024245,10]
[374108026,1753209049733,-500.0,0.00024267,2]
[374108027,1753209049742,-1000.0,0.00024314,2]
[374108028,1753209049751,-1000.0,0.00024356,2]
[374108029,1753209049761,-500.0,0.00024379,2]
[374108030,1753209049771,-500.0,0.00024387,2]
[374108031,1753209049781,-460.0,0.00024391,2]
[374108032,1753209049791,-26570.9385384,0.00024398,2]
[374108033,1753209049800,-500.0,0.00024482,2]
[374108034,1753209049811,-1001.37064921,0.000245,3]
[374108035,1753209049820,-1600.0,0.00024519,2]
[374108036,1753209049830,-1144.11238196,0.00024521,11]
[374108037,1753209049840,-1000.0,0.00024524,2]
[374108038,1753209049849,-1600.0,0.00024535,2]
[374108039,1753209049859,-407.0,0.00024554,2]
[374108040,1753209049869,-2157.0,0.00024554,2]
[374108041,1753209049878,-1600.0,0.00024588,2]
[374108042,1753209049888,-173.31302,0.00024598,8]
[374108043,1753209049898,-1030.94,0.000246,2]
[374108044,1753209049908,-508.32194537,0.00024603,2]
[374108045,1753209049919,-58470.34846006,0.0002465,2]
[374108046,1753209049929,-186.0760109,0.00024658,2]
[374108047,1753209049939,-577.3,0.00024665,2]
[374108048,1753209049949,-1000.0,0.0002469,2]
[374108049,1753209049958,-500.0,0.00024744,2]
[374108050,1753209049968,-500.0,0.00024753,2]
[374108051,1753209049977,-1000.0,0.00024765,2]
[374108052,1753209049987,-1144.11238196,0.00024797,11]
[374108053,1753209049997,-939.815287,0.000248,7]
[374108054,1753209050007,-3014.33771,0.000248,2]
[374108055,1753209050017,-190.0,0.00024804,2]
[374108056,1753209050027,-1000.0,0.00024806,2]
[374108057,1753209050037,-1000.0,0.00024865,2]
[374108058,1753209050047,-939.815287,0.000249,7]
[374108059,1753209050057,-447357.607593,0.000249,2]
[374108060,1753209050067,-909.00000909,0.00024908,14]
[374108061,1753209050076,-170.70320484,0.00024915,2]
[374108062,1753209050086,-1600.0,0.00024941,2]
[374108063,1753209050096,-1600.0,0.0002496,2]
[374108064,1753209050105,-151.0,0.00024981,2]
[374108065,1753209050116,-500.0,0.00024981,2]
[374108066,1753209050125,-151.0,0.00024981,2]
[374108067,1753209050135,-151.0,0.00024981,2]
[374108068,1753209050145,-151.0,0.00024981,2]
[374108069,1753209050155,-151.0,0.00024981,2]
[374108070,1753209050165,-449.0,0.00024981,2]
[374108071,1753209050175,-151.0,0.00024981,2]
[374108072,1753209050184,-151.0,0.00024981,2]
[374108073,1753209050194,-151.75423861,0.00024981,2]
[374108074,1753209050294,-151.0,0.00024981,2]
[374108075,1753209050305,-151.0,0.00024981,2]
[374108076,1753209050315,-151.52218414,0.00024981,2]
[374108077,1753209050324,-154.39491513,0.00024981,2]
[374108078,1753209050334,-274.08742551,0.00024981,2]
[374108079,1753209050344,-151.0,0.00024981,2]
[374108080,1753209050353,-151.0,0.00024981,2]
[374108081,1753209050363,-939.815287,0.00025,7]
[374108082,1753209050372,-293.85068442,0.00025007,2]
[374108083,1753209050381,-33327.46689702,0.00025015,2]
[374108084,1753209050391,-1000.0,0.00025016,2]
[374108085,1753209050401,-1349.78201385,0.00025034,2]
[374108086,1753209050410,-1541.83927499,0.00025034,2]
[374108087,1753209050419,-1144.11238196,0.00025072,12]
[374108088,1753209050429,-151.0,0.00025091,7]
[374108089,1753209050438,-151.0,0.00025091,7]
[374108090,1753209050447,-151.0,0.00025093,7]
[374108091,1753209050457,-151.0,0.00025093,7]
[374108092,1753209050466,-151.95371,0.00025093,2]
[374108093,1753209050477,-151.0,0.00025093,7]
[374108094,1753209050486,-151.0,0.00025093,7]
[374108095,1753209050495,-151.0,0.00025093,7]
[374108096,1753209050504,-151.0,0.00025093,7]
[374108097,1753209050515,-151.0,0.00025093,7]
[374108098,1753209050525,-151.0,0.00025093,7]
[374108099,1753209050534,-151.0,0.00025093,7]
[374108100,1753209050543,-151.0,0.00025093,7]
[374108101,1753209050553,-151.0,0.00025093,7]
[374108102,1753209050562,-151.0,0.00025093,7]
[374108103,1753209050573,-151.0,0.00025093,7]
[374108104,1753209050586,-151.0,0.00025093,7]
[374108105,1753209050595,-151.0,0.00025093,7]
[374108106,1753209050604,-151.0,0.00025093,7]
[374108107,1753209050615,-150.793548,0.00025093,32]
[374108108,1753209050624,-151.0,0.00025093,7]
[374108109,1753209050633,-151.0,0.00025093,7]
[374108110,1753209050642,-2000.0,0.000251,2]
[374108111,1753209050654,-9867.60262263,0.000251,2]
[374108112,1753209050664,-1983.6,0.000251,2]
[374108113,1753209050674,-151.0,0.00025115,7]
[374108114,1753209050683,-151.0,0.00025115,7]
[374108115,1753209050692,-151.0,0.00025115,7]
[374108116,1753209050701,-939.815287,0.00025115,7]
[374108117,1753209050711,-939.815287,0.00025115,7]
[374108118,1753209050721,-939.81527797,0.00025115,7]
[374108119,1753209050730,-326.688018,0.00025115,7]
[374108120,1753209050739,-326.688018,0.00025115,7]
[374108121,1753209050749,-326.688018,0.00025115,7]
[374108122,1753209050758,-326.688018,0.00025115,7]
[374108123,1753209050769,-326.688018,0.00025115,7]
[374108124,1753209050780,-326.688018,0.00025115,7]
[374108125,1753209050789,-326.688018,0.00025115,7]
[374108126,1753209050799,-326.688018,0.00025115,7]
[374108127,1753209050808,-326.688018,0.00025115,7]
[374108128,1753209050817,-326.688018,0.00025115,7]
[374108129,1753209050826,-326.688018,0.00025115,7]
[374108130,1753209050835,-326.688018,0.00025115,7]
[374108131,1753209050845,-326.688018,0.00025115,7]
[374108132,1753209050854,-326.688018,0.00025115,7]
[374108133,1753209050864,-326.688018,0.00025115,7]
[374108134,1753209050873,-326.688018,0.00025115,7]
[374108135,1753209050883,-326.688018,0.00025115,7]
[374108136,1753209050893,-326.688018,0.00025115,7]
[374108137,1753209050903,-326.688018,0.00025115,7]
[374108138,1753209050912,-326.688018,0.00025115,7]
[374108139,1753209050921,-537794.91987062,0.00025149,20]
[374108140,1753209051354,-460.0,0.00016825,2]
[374108141,1753209051364,-460.0,0.00016825,2]
[374108142,1753209051374,-460.0,0.00016825,2]
[374108143,1753209051383,-460.0,0.00016825,2]
[374108144,1753209051392,-464.33766646,0.00016826,2]
[374108145,1753209051402,-460.0,0.00016827,2]
[374108146,1753209051411,-126.60421361,0.00017374,2]
[374108147,1753209076221,4941.90678448,0.00016726,2]
[374108148,1753209076245,20000.0,0.00016726,2]
[374108149,1753209076268,20000.0,0.00016726,2]
[374108150,1753209076294,20000.0,0.00016726,2]
[374108151,1753209076317,20000.0,0.00016726,2]
[374108152,1753209076339,20000.0,0.00016726,2]
[374108153,1753209076362,20000.0,0.00016726,2]
[374108154,1753209076385,20000.0,0.00016726,2]
[374108155,1753209076407,20000.0,0.00016726,2]
[374108156,1753209076431,20000.0,0.00016726,2]
[374108157,1753209076453,20000.0,0.00016726,2]
[374108158,1753209076475,20000.0,0.00016726,2]
[374108159,1753209076497,20000.0,0.00016726,2]
[374108160,1753209076520,20000.0,0.00016726,2]
[374108161,1753209076543,20000.0,0.00016726,2]
[374108162,1753209076565,20000.0,0.00016726,2]
[374108163,1753209076590,20000.0,0.00016726,2]
[374108164,1753209076612,20000.0,0.00016726,2]
[374108165,1753209076634,20000.0,0.00016726,2]
[374108166,1753209076658,5058.09321552,0.00016726,2]
[374108167,1753209089841,5000.0,0.00016765,2]
[374108168,1753209105533,5000.0,0.00016765,2]
[374108169,1753209121177,4941.90678448,0.00016765,2]
[374108170,1753209121198,58.09321552,0.00016765,2]
[374108171,1753209137628,3067.38989429,0.00016765,2]
[374108172,1753209168092,5000.0,0.00016765,2]
[374108173,1753209169167,1983.3,0.00025149,30]
[374108174,1753209186413,5000.0,0.00016765,2]
[374108175,1753209201584,175.598093,0.00016725,2]
[374108176,1753209201639,5000.0,0.00016765,2]
[374108177,1753209217261,1698.91879719,0.00016765,2]
[374108178,1753209217283,1034.34494452,0.00016765,2]
[374108179,1753209222386,464.097009,0.0001632,2]
[374108180,1753209223480,611.37379907,0.0001632,2]
[374108181,1753209223895,305.68689954,0.00016321,2]
[374108182,1753209233046,5000.0,0.00016765,2]
[374108183,1753209239794,12584.49734787,0.00016726,2]
[374108184,1753209239817,20000.0,0.00016726,2]
[374108185,1753209239839,20000.0,0.00016726,2]
[374108186,1753209239861,20000.0,0.00016726,2]
[374108187,1753209240019,20000.0,0.00016726,2]
[374108188,1753209240042,20000.0,0.00016726,2]
[374108189,1753209240064,20000.0,0.00016726,2]
[374108190,1753209240086,20000.0,0.00016726,2]
[374108191,1753209240109,20000.0,0.00016726,2]
[374108192,1753209240130,20000.0,0.00016726,2]
[374108193,1753209240152,11238.58555928,0.00016726,2]
[374108194,1753209248911,5000.0,0.00016765,2]
[374108196,1753209265279,3761.41444072,0.00016765,2]
[374108197,1753209265301,1238.58555928,0.00016765,2]
[374108198,1753209280479,5000.0,0.00016765,2]
[374108199,1753209295422,5000.0,0.00016765,2]
[374108200,1753209310849,5000.0,0.00016765,2]
[374108201,1753209320142,199.33265761,0.00016724,2]
[374108202,1753209326048,3562.08178311,0.00016765,2]
[374108203,1753209326070,1437.91821689,0.00016765,2]
[374108205,1753209346207,5000.0,0.00016765,2]
[374108206,1753209361936,5000.0,0.00016765,2]
[374108207,1753209377801,5000.0,0.00016765,2]
[374108208,1753209393346,3562.08178311,0.00016765,2]
[374108209,1753209393370,1437.91821689,0.00016765,2]
[374108210,1753209409214,5000.0,0.00016765,2]
[374108211,1753209424596,5000.0,0.00016765,2]
[374108212,1753209439687,5000.0,0.00016765,2]
[374108213,1753209440074,3562.08178311,0.00015825,2]
[374108214,1753209440099,20000.0,0.00015825,2]
[374108215,1753209440122,1337.91821689,0.00015825,2]
[374108216,1753209442366,-209.60203101,0.0001677,2]
[374108217,1753209445522,-334.75919254,0.0001677,2]
[374108218,1753209448224,-228.00337946,0.0001677,2]
[374108219,1753209452824,-160.0,0.0001677,2]
[374108220,1753209454870,5000.0,0.00016765,2]
[374108221,1753209455528,-212.27399947,0.0001677,2]
[374108222,1753209458245,-266.04688962,0.0001677,2]
[374108223,1753209462015,-202.0705883,0.0001677,2]
[374108224,1753209463626,-160.72727446,0.0001677,2]
[374108225,1753209466393,-356.84383442,0.0001677,2]
[374108226,1753209468571,-212.28949371,0.0001677,2]
[374108227,1753209472592,152.56018302,0.00016652,2]
[374108228,1753209472672,310.30334435,0.00016765,2]
[374108229,1753209475100,396.6734559,0.00015825,2]
[374108230,1753209476700,-290.41651701,0.0001677,2]
[374108231,1753209492569,-247.97048959,0.0001677,2]
[374108232,1753209500614,165.675236,0.00015825,2]
[374108233,1753209500849,165.675236,0.00015983,2]
[374108234,1753209505125,-156.96924885,0.0001677,2]
[374108235,1753209508358,-183.87644133,0.0001677,2]